[Event "Titled Tuesday Blitz February 22 Early 2022"]
[White "Van Foreest, Jorden"]
[Black "Golubka, Petro"]
[WhiteFideId "1039784"]
[BlackFideId "14114224"]
[WhiteElo "2609"]
[BlackElo "2392"]
[Result "1-0"]
[Round "04"]
[TimeControl "180+1"]
[Date "2022.02.22"]
[WhiteClock "0:00:19"]
[BlackClock "0:00:19"]

1. e4 {[%clk 0:02:49]}  e5 {[%clk 0:02:58]} 2. Nf3 {[%clk 0:02:49]}  Nc6 {[%clk 0:02:58]} 3. Bc4 {[%clk 0:02:50]}  Bc5 {[%clk 0:02:56]} 4. O-O {[%clk 0:02:48]}  Nf6 {[%clk 0:02:56]} 5. Re1 {[%clk 0:02:49]}  d6 {[%clk 0:02:55]} 6. c3 {[%clk 0:02:49]}  O-O {[%clk 0:02:43]} 7. d4 {[%clk 0:02:46]}  Bb6 {[%clk 0:02:43]} 8. h3 {[%clk 0:02:45]}  h6 {[%clk 0:02:41]} 9. Bb3 {[%clk 0:02:29]}  a5 {[%clk 0:02:39]} 10. a3 {[%clk 0:02:24]}  Re8 {[%clk 0:02:23]} 11. Bc2 {[%clk 0:02:08]}  g5 {[%clk 0:02:08]} 12. Nbd2 {[%clk 0:01:55]}  exd4 {[%clk 0:02:06]} 13. Nc4 {[%clk 0:01:55]}  dxc3 {[%clk 0:01:57]} 14. Nxb6 {[%clk 0:01:55]}  cxb6 {[%clk 0:01:58]} 15. bxc3 {[%clk 0:01:54]}  Ne5 {[%clk 0:01:49]} 16. Nd4 {[%clk 0:01:53]}  Ng6 {[%clk 0:01:42]} 17. Nb5 {[%clk 0:01:42]}  Re6 {[%clk 0:01:36]} 18. Bb3 {[%clk 0:01:41]}  Rxe4 {[%clk 0:01:18]} 19. Bxf7+ {[%clk 0:01:38]}  Kxf7 {[%clk 0:01:12]} 20. Rxe4 {[%clk 0:01:26]}  Nxe4 {[%clk 0:01:11]} 21. Qd5+ {[%clk 0:01:26]}  Kg7 {[%clk 0:01:08]} 22. Qxe4 {[%clk 0:01:27]}  d5 {[%clk 0:01:06]} 23. Qd4+ {[%clk 0:01:24]}  Qf6 {[%clk 0:01:06]} 24. Qxf6+ {[%clk 0:01:23]}  Kxf6 {[%clk 0:01:07]} 25. Nc7 {[%clk 0:01:24]}  Rb8 {[%clk 0:01:05]} 26. Nxd5+ {[%clk 0:01:24]}  Kf7 {[%clk 0:01:05]} 27. Nxb6 {[%clk 0:01:22]}  Be6 {[%clk 0:01:04]} 28. Be3 {[%clk 0:01:20]}  Rd8 {[%clk 0:01:04]} 29. Bd4 {[%clk 0:01:20]}  Nf4 {[%clk 0:01:04]} 30. Re1 {[%clk 0:01:17]}  Rd6 {[%clk 0:01:00]} 31. Kh2 {[%clk 0:01:11]}  Nd3 {[%clk 0:00:54]} 32. Rd1 {[%clk 0:01:06]}  Nf4 {[%clk 0:00:48]} 33. Rb1 {[%clk 0:01:03]}  Bf5 {[%clk 0:00:47]} 34. Rb5 {[%clk 0:01:01]}  Be4 {[%clk 0:00:45]} 35. f3 {[%clk 0:01:01]}  Bc6 {[%clk 0:00:45]} 36. Rxa5 {[%clk 0:00:59]}  Re6 {[%clk 0:00:46]} 37. Re5 {[%clk 0:00:53]}  Nd3 {[%clk 0:00:45]} 38. Rxe6 {[%clk 0:00:50]}  Kxe6 {[%clk 0:00:46]} 39. Kg3 {[%clk 0:00:47]}  Kf5 {[%clk 0:00:43]} 40. Nc4 {[%clk 0:00:45]}  h5 {[%clk 0:00:43]} 41. Ne3+ {[%clk 0:00:45]}  Kg6 {[%clk 0:00:41]} 42. h4 {[%clk 0:00:46]}  gxh4+ {[%clk 0:00:36]} 43. Kxh4 {[%clk 0:00:45]}  Nf4 {[%clk 0:00:37]} 44. Kg3 {[%clk 0:00:43]}  Nd3 {[%clk 0:00:36]} 45. Kh2 {[%clk 0:00:39]}  h4 {[%clk 0:00:35]} 46. Nc4 {[%clk 0:00:35]}  Bd5 {[%clk 0:00:28]} 47. Ne3 {[%clk 0:00:27]}  Bc6 {[%clk 0:00:28]} 48. c4 {[%clk 0:00:27]}  Kg5 {[%clk 0:00:25]} 49. Nd5 {[%clk 0:00:27]}  b5 {[%clk 0:00:19]} 50. Be3+ {[%clk 0:00:27]}  Kh5 {[%clk 0:00:19]} 51. Ne7 {[%clk 0:00:21]}  Be8 {[%clk 0:00:18]} 52. c5 {[%clk 0:00:20]}  Ne5 {[%clk 0:00:19]} 53. Nd5 {[%clk 0:00:18]}  Bc6 {[%clk 0:00:18]} 54. Nf4+ {[%clk 0:00:17]}  Kg5 {[%clk 0:00:18]} 55. Nd3+ {[%clk 0:00:18]}  Kf5 {[%clk 0:00:18]} 56. Nxe5 {[%clk 0:00:18]}  Kxe5 {[%clk 0:00:19]} 57. Kh3 {[%clk 0:00:19]} 1-0


[Site "https://www.chess.com"]

[Event "Titled Tuesday Blitz February 22 Early 2022"]
[White "Van den Dikkenberg, Erik"]
[Black "Aaditya Dhingra"]
[WhiteFideId "1005880"]
[BlackFideId "25678191"]
[WhiteElo "2118"]
[BlackElo "1789"]
[Result "0-1"]
[Round "04"]
[TimeControl "180+1"]
[Date "2022.02.22"]
[WhiteClock "0:00:42"]
[BlackClock "0:01:32"]

1. e4 {[%clk 0:03:00]}  e5 {[%clk 0:02:58]} 2. Nf3 {[%clk 0:03:00]}  Nc6 {[%clk 0:02:58]} 3. d4 {[%clk 0:03:00]}  exd4 {[%clk 0:02:57]} 4. Nxd4 {[%clk 0:03:01]}  Bc5 {[%clk 0:02:56]} 5. Nb3 {[%clk 0:03:00]}  Bb6 {[%clk 0:02:55]} 6. Qe2 {[%clk 0:03:00]}  Nge7 {[%clk 0:02:54]} 7. Be3 {[%clk 0:03:00]}  O-O {[%clk 0:02:53]} 8. Nc3 {[%clk 0:03:00]}  d6 {[%clk 0:02:52]} 9. O-O-O {[%clk 0:03:00]}  f5 {[%clk 0:02:52]} 10. h4 {[%clk 0:02:47]}  fxe4 {[%clk 0:02:49]} 11. Nxe4 {[%clk 0:02:42]}  Nf5 {[%clk 0:02:48]} 12. Bxb6 {[%clk 0:02:41]}  axb6 {[%clk 0:02:45]} 13. Kb1 {[%clk 0:02:41]}  Qe7 {[%clk 0:02:39]} 14. Nc3 {[%clk 0:02:15]}  Qxe2 {[%clk 0:02:36]} 15. Bxe2 {[%clk 0:02:15]}  Be6 {[%clk 0:02:24]} 16. Nd5 {[%clk 0:02:04]}  Rf7 {[%clk 0:02:19]} 17. Bg4 {[%clk 0:01:42]}  Ne5 {[%clk 0:02:10]} 18. Bxf5 {[%clk 0:01:40]}  Bxf5 {[%clk 0:02:09]} 19. Nd4 {[%clk 0:01:36]}  Be4 {[%clk 0:01:55]} 20. Ne3 {[%clk 0:00:58]}  Rxf2 {[%clk 0:01:49]} 21. Rhf1 {[%clk 0:00:54]}  Raf8 {[%clk 0:01:47]} 22. Rxf2 {[%clk 0:00:54]}  Rxf2 {[%clk 0:01:45]} 23. g4 {[%clk 0:00:46]}  g6 {[%clk 0:01:41]} 24. g5 {[%clk 0:00:44]}  Kg7 {[%clk 0:01:35]} 25. Ng4 {[%clk 0:00:42]}  Nxg4 {[%clk 0:01:32]} 0-1


[Site "https://www.chess.com"]

[Event "Titled Tuesday Blitz February 22 Early 2022"]
[White "Viskelis, Darius"]
[Black "Elgersma, Onno"]
[WhiteFideId "12800830"]
[BlackFideId "1053531"]
[WhiteElo "1999"]
[BlackElo "2304"]
[Result "0-1"]
[Round "04"]
[TimeControl "180+1"]
[Date "2022.02.22"]
[WhiteClock "0:00:01"]
[BlackClock "0:00:08"]

1. e4 {[%clk 0:02:46]}  c6 {[%clk 0:02:51]} 2. d4 {[%clk 0:02:46]}  d5 {[%clk 0:02:51]} 3. exd5 {[%clk 0:02:47]}  cxd5 {[%clk 0:02:51]} 4. c4 {[%clk 0:02:48]}  Nf6 {[%clk 0:02:50]} 5. Nc3 {[%clk 0:02:48]}  g6 {[%clk 0:02:50]} 6. cxd5 {[%clk 0:02:48]}  Bg7 {[%clk 0:02:48]} 7. Bb5+ {[%clk 0:02:48]}  Nbd7 {[%clk 0:02:47]} 8. d6 {[%clk 0:02:47]}  e6 {[%clk 0:02:46]} 9. Bf4 {[%clk 0:02:42]}  O-O {[%clk 0:02:39]} 10. Nf3 {[%clk 0:02:41]}  a6 {[%clk 0:01:36]} 11. Bd3 {[%clk 0:02:41]}  Qb6 {[%clk 0:01:22]} 12. Qd2 {[%clk 0:02:36]}  Nh5 {[%clk 0:01:18]} 13. Bh6 {[%clk 0:02:16]}  Qxd6 {[%clk 0:01:17]} 14. Bxg7 {[%clk 0:02:14]}  Kxg7 {[%clk 0:01:18]} 15. O-O {[%clk 0:02:10]}  Qf4 {[%clk 0:01:13]} 16. Qe2 {[%clk 0:02:00]}  Ndf6 {[%clk 0:01:11]} 17. Rad1 {[%clk 0:01:55]}  b5 {[%clk 0:01:09]} 18. Ne5 {[%clk 0:01:49]}  Bb7 {[%clk 0:01:02]} 19. g3 {[%clk 0:01:50]}  Qg5 {[%clk 0:00:53]} 20. h4 {[%clk 0:01:22]}  Qh6 {[%clk 0:00:52]} 21. Ne4 {[%clk 0:01:15]}  Nxe4 {[%clk 0:00:42]} 22. Bxe4 {[%clk 0:01:15]}  Bxe4 {[%clk 0:00:43]} 23. Qxe4 {[%clk 0:01:15]}  Nf6 {[%clk 0:00:44]} 24. Qf3 {[%clk 0:01:09]}  Qh5 {[%clk 0:00:42]} 25. Qf4 {[%clk 0:00:58]}  Rfd8 {[%clk 0:00:35]} 26. Kg2 {[%clk 0:00:51]}  Qf5 {[%clk 0:00:34]} 27. Qg5 {[%clk 0:00:44]}  h6 {[%clk 0:00:31]} 28. Qd2 {[%clk 0:00:32]}  Rac8 {[%clk 0:00:29]} 29. Rc1 {[%clk 0:00:26]}  Rxc1 {[%clk 0:00:20]} 30. Rxc1 {[%clk 0:00:27]}  Qxe5 {[%clk 0:00:18]} 31. dxe5 {[%clk 0:00:27]}  Rxd2 {[%clk 0:00:18]} 32. exf6+ {[%clk 0:00:27]}  Kxf6 {[%clk 0:00:19]} 33. Rc6 {[%clk 0:00:26]}  a5 {[%clk 0:00:20]} 34. Ra6 {[%clk 0:00:20]}  a4 {[%clk 0:00:20]} 35. b3 {[%clk 0:00:18]}  Rxa2 {[%clk 0:00:19]} 36. bxa4 {[%clk 0:00:16]}  bxa4 {[%clk 0:00:20]} 37. Kf3 {[%clk 0:00:15]}  Ra1 {[%clk 0:00:21]} 38. g4 {[%clk 0:00:15]}  a3 {[%clk 0:00:21]} 39. Ra7 {[%clk 0:00:13]}  g5 {[%clk 0:00:21]} 40. hxg5+ {[%clk 0:00:12]}  hxg5 {[%clk 0:00:22]} 41. Ra8 {[%clk 0:00:12]}  Kg6 {[%clk 0:00:22]} 42. Rg8+ {[%clk 0:00:11]}  Kh6 {[%clk 0:00:22]} 43. Ra8 {[%clk 0:00:12]}  a2 {[%clk 0:00:22]} 44. Ra7 {[%clk 0:00:11]}  f5 {[%clk 0:00:22]} 45. gxf5 {[%clk 0:00:10]}  exf5 {[%clk 0:00:23]} 46. Ra6+ {[%clk 0:00:10]}  Kg7 {[%clk 0:00:22]} 47. Kg2 {[%clk 0:00:10]}  Kf7 {[%clk 0:00:20]} 48. Ra5 {[%clk 0:00:09]}  Kf6 {[%clk 0:00:20]} 49. Ra6+ {[%clk 0:00:10]}  Kg7 {[%clk 0:00:18]} 50. Ra5 {[%clk 0:00:10]}  Kg6 {[%clk 0:00:18]} 51. Ra6+ {[%clk 0:00:11]}  Kh5 {[%clk 0:00:18]} 52. Ra5 {[%clk 0:00:11]}  Kg4 {[%clk 0:00:18]} 53. Ra4+ {[%clk 0:00:10]}  f4 {[%clk 0:00:18]} 54. Ra5 {[%clk 0:00:09]}  Kh4 {[%clk 0:00:17]} 55. Ra8 {[%clk 0:00:08]}  Kg4 {[%clk 0:00:14]} 56. Ra5 {[%clk 0:00:07]}  f3+ {[%clk 0:00:13]} 57. Kh2 {[%clk 0:00:07]}  Kh4 {[%clk 0:00:13]} 58. Ra8 {[%clk 0:00:07]}  g4 {[%clk 0:00:11]} 59. Rh8+ {[%clk 0:00:06]}  Kg5 {[%clk 0:00:12]} 60. Ra8 {[%clk 0:00:06]}  Kf5 {[%clk 0:00:12]} 61. Ra4 {[%clk 0:00:05]}  g3+ {[%clk 0:00:10]} 62. fxg3 {[%clk 0:00:04]}  f2 {[%clk 0:00:10]} 63. Rf4+ {[%clk 0:00:04]}  Kg5 {[%clk 0:00:08]} 64. Rxf2 {[%clk 0:00:05]}  Kg4 {[%clk 0:00:08]} 65. Rf4+ {[%clk 0:00:05]}  Kg5 {[%clk 0:00:08]} 66. Ra4 {[%clk 0:00:05]}  Kf5 {[%clk 0:00:08]} 67. Ra8 {[%clk 0:00:05]}  Ke6 {[%clk 0:00:08]} 68. Ra5 {[%clk 0:00:03]}  Kd6 {[%clk 0:00:08]} 69. g4 {[%clk 0:00:04]}  Ke6 {[%clk 0:00:08]} 70. Ra8 {[%clk 0:00:01]}  Kf6 {[%clk 0:00:08]} 0-1


[Site "https://www.chess.com"]

[Event "Titled Tuesday Blitz February 22 Early 2022"]
[White "Vokhidov, Shamsiddin"]
[Black "Lenderman, Aleksandr"]
[WhiteFideId "14204223"]
[BlackFideId "2021285"]
[WhiteElo "2611"]
[BlackElo "2651"]
[Result "1-0"]
[Round "04"]
[TimeControl "180+1"]
[Date "2022.02.22"]
[WhiteClock "0:00:31"]
[BlackClock "0:00:02"]

1. e4 {[%clk 0:03:00]}  e6 {[%clk 0:02:57]} 2. d4 {[%clk 0:03:01]}  d5 {[%clk 0:02:57]} 3. Nc3 {[%clk 0:03:02]}  dxe4 {[%clk 0:02:56]} 4. Nxe4 {[%clk 0:03:02]}  Nd7 {[%clk 0:02:56]} 5. Nf3 {[%clk 0:03:02]}  Ngf6 {[%clk 0:02:56]} 6. Bd3 {[%clk 0:03:03]}  c5 {[%clk 0:02:55]} 7. O-O {[%clk 0:02:49]}  Nxe4 {[%clk 0:02:48]} 8. Bxe4 {[%clk 0:02:50]}  Nf6 {[%clk 0:02:49]} 9. Bg5 {[%clk 0:02:49]}  cxd4 {[%clk 0:02:49]} 10. Nxd4 {[%clk 0:02:49]}  Be7 {[%clk 0:02:49]} 11. Bf3 {[%clk 0:02:49]}  O-O {[%clk 0:02:36]} 12. Re1 {[%clk 0:02:32]}  Qa5 {[%clk 0:02:29]} 13. Bd2 {[%clk 0:02:25]}  Qb6 {[%clk 0:02:21]} 14. Nb3 {[%clk 0:02:25]}  Bb4 {[%clk 0:02:01]} 15. c3 {[%clk 0:02:16]}  Be7 {[%clk 0:02:00]} 16. Be3 {[%clk 0:01:57]}  Qc7 {[%clk 0:01:59]} 17. Bd4 {[%clk 0:01:53]}  Bd7 {[%clk 0:01:54]} 18. Be5 {[%clk 0:01:53]}  Qc8 {[%clk 0:01:52]} 19. Nd4 {[%clk 0:01:53]}  a6 {[%clk 0:01:31]} 20. Qb3 {[%clk 0:01:52]}  Ra7 {[%clk 0:01:29]} 21. a4 {[%clk 0:01:41]}  Ne8 {[%clk 0:01:19]} 22. Rad1 {[%clk 0:01:34]}  Bc5 {[%clk 0:01:13]} 23. Rd2 {[%clk 0:01:28]}  b6 {[%clk 0:01:07]} 24. Red1 {[%clk 0:01:26]}  f6 {[%clk 0:01:03]} 25. Bg3 {[%clk 0:01:24]}  Kh8 {[%clk 0:01:03]} 26. Qc4 {[%clk 0:00:57]}  e5 {[%clk 0:00:55]} 27. b4 {[%clk 0:00:56]}  Bxd4 {[%clk 0:00:33]} 28. Qxc8 {[%clk 0:00:55]}  Bxc8 {[%clk 0:00:34]} 29. cxd4 {[%clk 0:00:55]}  e4 {[%clk 0:00:21]} 30. Bxe4 {[%clk 0:00:55]}  f5 {[%clk 0:00:22]} 31. Bf3 {[%clk 0:00:51]}  f4 {[%clk 0:00:22]} 32. Bh4 {[%clk 0:00:52]}  h6 {[%clk 0:00:18]} 33. Bd8 {[%clk 0:00:47]}  b5 {[%clk 0:00:04]} 34. Bb6 {[%clk 0:00:48]}  Rd7 {[%clk 0:00:04]} 35. axb5 {[%clk 0:00:47]}  axb5 {[%clk 0:00:05]} 36. Bc6 {[%clk 0:00:47]}  Rd6 {[%clk 0:00:03]} 37. Bc5 {[%clk 0:00:48]}  Rxc6 {[%clk 0:00:03]} 38. Bxf8 {[%clk 0:00:48]}  Rc4 {[%clk 0:00:04]} 39. d5 {[%clk 0:00:43]}  Kg8 {[%clk 0:00:03]} 40. Bc5 {[%clk 0:00:43]}  Nf6 {[%clk 0:00:03]} 41. Rd4 {[%clk 0:00:41]}  f3 {[%clk 0:00:02]} 42. Rxc4 {[%clk 0:00:41]}  bxc4 {[%clk 0:00:02]} 43. gxf3 {[%clk 0:00:39]}  Bf5 {[%clk 0:00:03]} 44. Rc1 {[%clk 0:00:35]}  Bd3 {[%clk 0:00:02]} 45. d6 {[%clk 0:00:33]}  Nd7 {[%clk 0:00:02]} 46. Bd4 {[%clk 0:00:32]}  Kf7 {[%clk 0:00:02]} 47. Re1 {[%clk 0:00:32]}  Kf8 {[%clk 0:00:02]} 48. Re7 {[%clk 0:00:31]} 1-0


[Site "https://www.chess.com"]

[Event "Titled Tuesday Blitz February 22 Early 2022"]
[White "Zhu, Jiner"]
[Black "Pajeken, Jakob Leon"]
[WhiteFideId "8608059"]
[BlackFideId "12942839"]
[WhiteElo "2733"]
[BlackElo "2518"]
[Result "1-0"]
[Round "04"]
[TimeControl "180+1"]
[Date "2022.02.22"]
[WhiteClock "0:00:15"]
[BlackClock "0:00:01"]

1. e4 {[%clk 0:03:00]}  e5 {[%clk 0:02:55]} 2. Nf3 {[%clk 0:03:00]}  Nc6 {[%clk 0:02:56]} 3. Bb5 {[%clk 0:03:01]}  a6 {[%clk 0:02:56]} 4. Ba4 {[%clk 0:03:01]}  Nf6 {[%clk 0:02:56]} 5. O-O {[%clk 0:03:02]}  Be7 {[%clk 0:02:56]} 6. Re1 {[%clk 0:03:02]}  b5 {[%clk 0:02:56]} 7. Bb3 {[%clk 0:03:03]}  d6 {[%clk 0:02:57]} 8. c3 {[%clk 0:03:02]}  O-O {[%clk 0:02:58]} 9. h3 {[%clk 0:03:02]}  Na5 {[%clk 0:02:57]} 10. Bc2 {[%clk 0:03:02]}  c5 {[%clk 0:02:58]} 11. d4 {[%clk 0:03:02]}  Qc7 {[%clk 0:02:59]} 12. Nbd2 {[%clk 0:03:00]}  cxd4 {[%clk 0:02:59]} 13. cxd4 {[%clk 0:03:00]}  Rd8 {[%clk 0:02:59]} 14. Nb3 {[%clk 0:02:57]}  Nc4 {[%clk 0:02:51]} 15. d5 {[%clk 0:02:40]}  a5 {[%clk 0:02:46]} 16. Nbd2 {[%clk 0:02:40]}  Bd7 {[%clk 0:02:41]} 17. Bd3 {[%clk 0:02:37]}  Nxd2 {[%clk 0:02:35]} 18. Bxd2 {[%clk 0:02:37]}  b4 {[%clk 0:02:30]} 19. a3 {[%clk 0:02:24]}  bxa3 {[%clk 0:02:24]} 20. bxa3 {[%clk 0:02:24]}  Rdc8 {[%clk 0:02:14]} 21. Qe2 {[%clk 0:02:22]}  Bd8 {[%clk 0:02:06]} 22. Be3 {[%clk 0:02:16]}  a4 {[%clk 0:01:56]} 23. Nd2 {[%clk 0:01:59]}  Qc3 {[%clk 0:01:32]} 24. f3 {[%clk 0:01:57]}  Nh5 {[%clk 0:01:23]} 25. Nc4 {[%clk 0:01:52]}  Nf4 {[%clk 0:01:22]} 26. Bxf4 {[%clk 0:01:51]}  exf4 {[%clk 0:01:23]} 27. Kh1 {[%clk 0:01:33]}  Qf6 {[%clk 0:01:06]} 28. Rab1 {[%clk 0:01:30]}  Rab8 {[%clk 0:01:00]} 29. Rxb8 {[%clk 0:01:25]}  Rxb8 {[%clk 0:01:00]} 30. e5 {[%clk 0:01:25]}  Qh6 {[%clk 0:00:40]} 31. e6 {[%clk 0:01:05]}  fxe6 {[%clk 0:00:40]} 32. dxe6 {[%clk 0:01:05]}  Be8 {[%clk 0:00:41]} 33. Nxd6 {[%clk 0:01:03]}  Ba5 {[%clk 0:00:41]} 34. Rb1 {[%clk 0:00:51]}  Rxb1+ {[%clk 0:00:38]} 35. Bxb1 {[%clk 0:00:52]}  Qh5 {[%clk 0:00:28]} 36. Nxe8 {[%clk 0:00:48]}  Qxe8 {[%clk 0:00:28]} 37. Bd3 {[%clk 0:00:47]}  Qe7 {[%clk 0:00:21]} 38. Qe4 {[%clk 0:00:47]}  g6 {[%clk 0:00:17]} 39. Qa8+ {[%clk 0:00:46]}  Bd8 {[%clk 0:00:17]} 40. Qxa4 {[%clk 0:00:44]}  Bb6 {[%clk 0:00:15]} 41. Qb3 {[%clk 0:00:35]}  Be3 {[%clk 0:00:11]} 42. Bc4 {[%clk 0:00:31]}  Kg7 {[%clk 0:00:11]} 43. Qc3+ {[%clk 0:00:30]}  Kh6 {[%clk 0:00:11]} 44. Qd3 {[%clk 0:00:29]}  Qb7 {[%clk 0:00:07]} 45. a4 {[%clk 0:00:28]}  Qa7 {[%clk 0:00:06]} 46. Bb5 {[%clk 0:00:27]}  Qc5 {[%clk 0:00:04]} 47. Qc4 {[%clk 0:00:25]}  Qe5 {[%clk 0:00:03]} 48. Kh2 {[%clk 0:00:21]}  Qg5 {[%clk 0:00:02]} 49. Qe2 {[%clk 0:00:20]}  Qg3+ {[%clk 0:00:02]} 50. Kh1 {[%clk 0:00:20]}  Qg5 {[%clk 0:00:03]} 51. Bc4 {[%clk 0:00:20]}  Qe5 {[%clk 0:00:03]} 52. Bb3 {[%clk 0:00:20]}  Qa1+ {[%clk 0:00:03]} 53. Qd1 {[%clk 0:00:20]}  Qe5 {[%clk 0:00:04]} 54. Qe1 {[%clk 0:00:20]}  Qf6 {[%clk 0:00:04]} 55. a5 {[%clk 0:00:21]}  Qe5 {[%clk 0:00:02]} 56. a6 {[%clk 0:00:21]}  Qg5 {[%clk 0:00:01]} 57. Bc4 {[%clk 0:00:20]}  Qe7 {[%clk 0:00:01]} 58. Qa1 {[%clk 0:00:18]}  g5 {[%clk 0:00:01]} 59. Bb3 {[%clk 0:00:16]}  Ba7 {[%clk 0:00:01]} 60. Qe5 {[%clk 0:00:15]}  Kh5 {[%clk 0:00:01]} 61. Qe4 {[%clk 0:00:15]} 1-0


[Site "https://www.chess.com"]

[Event "Titled Tuesday Blitz February 22 Early 2022"]
[White "Barbashin, Igor"]
[Black "Tillis., Bryan"]
[WhiteFideId "4155718"]
[BlackFideId "2059053"]
[WhiteElo "2138"]
[BlackElo "2349"]
[Result "1-0"]
[Round "05"]
[TimeControl "180+1"]
[Date "2022.02.22"]
[WhiteClock "0:00:32"]
[BlackClock "0:00:01"]

1. d4 {[%clk 0:02:55]}  d5 {[%clk 0:02:53]} 2. c4 {[%clk 0:02:55]}  e6 {[%clk 0:02:54]} 3. Nc3 {[%clk 0:02:55]}  a6 {[%clk 0:02:54]} 4. Nf3 {[%clk 0:02:55]}  Nf6 {[%clk 0:02:54]} 5. g3 {[%clk 0:02:53]}  dxc4 {[%clk 0:02:50]} 6. a4 {[%clk 0:02:52]}  Nc6 {[%clk 0:02:49]} 7. Bg2 {[%clk 0:02:51]}  Bb4 {[%clk 0:02:31]} 8. O-O {[%clk 0:02:50]}  O-O {[%clk 0:02:30]} 9. Bg5 {[%clk 0:02:24]}  h6 {[%clk 0:02:25]} 10. Bxf6 {[%clk 0:02:23]}  Qxf6 {[%clk 0:02:26]} 11. e4 {[%clk 0:02:23]}  Qd8 {[%clk 0:02:18]} 12. d5 {[%clk 0:02:18]}  Bxc3 {[%clk 0:02:07]} 13. bxc3 {[%clk 0:02:17]}  exd5 {[%clk 0:02:07]} 14. exd5 {[%clk 0:02:17]}  Na5 {[%clk 0:02:07]} 15. Nd4 {[%clk 0:01:51]}  Qd6 {[%clk 0:01:42]} 16. Qf3 {[%clk 0:01:46]}  Bd7 {[%clk 0:01:31]} 17. Rfe1 {[%clk 0:01:20]}  Rfe8 {[%clk 0:01:20]} 18. Nf5 {[%clk 0:01:15]}  Qf6 {[%clk 0:01:04]} 19. Nd4 {[%clk 0:01:04]}  Qxf3 {[%clk 0:00:56]} 20. Bxf3 {[%clk 0:01:02]}  Kf8 {[%clk 0:00:46]} 21. Red1 {[%clk 0:00:51]}  Rad8 {[%clk 0:00:32]} 22. Rd2 {[%clk 0:00:45]}  Nb3 {[%clk 0:00:26]} 23. Nxb3 {[%clk 0:00:43]}  cxb3 {[%clk 0:00:27]} 24. Rb2 {[%clk 0:00:42]}  b5 {[%clk 0:00:23]} 25. axb5 {[%clk 0:00:40]}  Bxb5 {[%clk 0:00:21]} 26. Rxb3 {[%clk 0:00:39]}  Rd7 {[%clk 0:00:13]} 27. Rb4 {[%clk 0:00:38]}  Bd3 {[%clk 0:00:08]} 28. Rd4 {[%clk 0:00:37]}  Bf5 {[%clk 0:00:04]} 29. c4 {[%clk 0:00:36]}  Red8 {[%clk 0:00:01]} 30. Kg2 {[%clk 0:00:35]}  c6 {[%clk 0:00:01]} 31. Rxa6 {[%clk 0:00:32]}  cxd5 {[%clk 0:00:01]} 32. cxd5 {[%clk 0:00:32]} 1-0


[Site "https://www.chess.com"]

[Event "Titled Tuesday Blitz February 22 Early 2022"]
[White "Begunov, Konstantin"]
[Black "Manukyan, Artyom"]
[WhiteFideId "4118510"]
[BlackFideId "13305786"]
[WhiteElo "2262"]
[BlackElo "2034"]
[Result "0-1"]
[Round "05"]
[TimeControl "180+1"]
[Date "2022.02.22"]
[WhiteClock "0:00:13"]
[BlackClock "0:01:46"]

1. d4 {[%clk 0:02:57]}  d5 {[%clk 0:02:55]} 2. c4 {[%clk 0:02:57]}  e6 {[%clk 0:02:56]} 3. Nc3 {[%clk 0:02:57]}  Nf6 {[%clk 0:02:56]} 4. Bg5 {[%clk 0:02:57]}  c5 {[%clk 0:02:55]} 5. cxd5 {[%clk 0:02:56]}  cxd4 {[%clk 0:02:54]} 6. Qxd4 {[%clk 0:02:55]}  Be7 {[%clk 0:02:54]} 7. O-O-O {[%clk 0:02:47]}  exd5 {[%clk 0:02:54]} 8. Nxd5 {[%clk 0:02:13]}  Nxd5 {[%clk 0:02:44]} 9. Bxe7 {[%clk 0:01:51]}  Qxe7 {[%clk 0:02:39]} 10. Qxd5 {[%clk 0:01:51]}  O-O {[%clk 0:02:39]} 11. Kb1 {[%clk 0:01:35]}  Nc6 {[%clk 0:02:33]} 12. Qd6 {[%clk 0:01:23]}  Rd8 {[%clk 0:02:32]} 13. Qxe7 {[%clk 0:01:23]}  Bf5+ {[%clk 0:02:10]} 14. Kc1 {[%clk 0:01:01]}  Nxe7 {[%clk 0:02:08]} 15. Rxd8+ {[%clk 0:01:00]}  Rxd8 {[%clk 0:02:09]} 16. f3 {[%clk 0:00:56]}  Rc8+ {[%clk 0:02:07]} 17. Kd2 {[%clk 0:00:56]}  Rc2+ {[%clk 0:02:06]} 18. Ke1 {[%clk 0:00:43]}  Rxb2 {[%clk 0:02:07]} 19. g4 {[%clk 0:00:43]}  Be6 {[%clk 0:02:07]} 20. a4 {[%clk 0:00:42]}  Ra2 {[%clk 0:02:06]} 21. Bg2 {[%clk 0:00:38]}  Rxa4 {[%clk 0:02:06]} 22. f4 {[%clk 0:00:38]}  Bd5 {[%clk 0:01:58]} 23. Kf2 {[%clk 0:00:25]}  Rxf4+ {[%clk 0:01:53]} 24. Kg3 {[%clk 0:00:25]}  Bxg2 {[%clk 0:01:49]} 25. Kxg2 {[%clk 0:00:22]}  Rxg4+ {[%clk 0:01:49]} 26. Kf2 {[%clk 0:00:21]}  Rb4 {[%clk 0:01:50]} 27. Nf3 {[%clk 0:00:21]}  Nc6 {[%clk 0:01:48]} 28. Rd1 {[%clk 0:00:20]}  h6 {[%clk 0:01:46]} 29. Rd7 {[%clk 0:00:20]}  a5 {[%clk 0:01:46]} 30. Nd2 {[%clk 0:00:13]}  a4 {[%clk 0:01:46]} 0-1


[Site "https://www.chess.com"]

[Event "Titled Tuesday Blitz February 22 Early 2022"]
[White "Bodnar, Nikolay"]
[Black "Buscar, Michael"]
[WhiteFideId "14106469"]
[BlackFideId "2603616"]
[WhiteElo "2296"]
[BlackElo "2010"]
[Result "0-1"]
[Round "05"]
[TimeControl "180+1"]
[Date "2022.02.22"]
[WhiteClock "0:00:08"]
[BlackClock "0:01:54"]

1. e4 {[%clk 0:03:00]}  e5 {[%clk 0:02:57]} 2. Nf3 {[%clk 0:02:49]}  Nf6 {[%clk 0:02:55]} 3. d4 {[%clk 0:02:48]}  Nxe4 {[%clk 0:02:53]} 4. Nxe5 {[%clk 0:02:47]}  d6 {[%clk 0:02:49]} 5. Nf3 {[%clk 0:02:28]}  d5 {[%clk 0:02:47]} 6. c4 {[%clk 0:02:27]}  Nc6 {[%clk 0:02:39]} 7. Nc3 {[%clk 0:02:25]}  Bb4 {[%clk 0:02:39]} 8. Qb3 {[%clk 0:02:21]}  Qe7 {[%clk 0:02:27]} 9. Be3 {[%clk 0:02:07]}  dxc4 {[%clk 0:02:22]} 10. Bxc4 {[%clk 0:02:01]}  Na5 {[%clk 0:02:21]} 11. Bxf7+ {[%clk 0:02:01]}  Kf8 {[%clk 0:02:19]} 12. Qd5 {[%clk 0:01:44]}  Nxc3 {[%clk 0:02:13]} 13. bxc3 {[%clk 0:01:44]}  Bxc3+ {[%clk 0:02:13]} 14. Kd1 {[%clk 0:01:34]}  Bxa1 {[%clk 0:02:12]} 15. Bg5 {[%clk 0:01:01]}  Qxf7 {[%clk 0:02:08]} 16. Qd8+ {[%clk 0:01:01]}  Qe8 {[%clk 0:02:08]} 17. Be7+ {[%clk 0:00:53]}  Kf7 {[%clk 0:02:09]} 18. Ne5+ {[%clk 0:00:36]}  Ke6 {[%clk 0:02:02]} 19. d5+ {[%clk 0:00:27]}  Kxe5 {[%clk 0:02:02]} 20. Qxc7+ {[%clk 0:00:25]}  Kf5 {[%clk 0:01:58]} 21. Re1 {[%clk 0:00:13]}  Qa4+ {[%clk 0:01:56]} 22. Ke2 {[%clk 0:00:12]}  Qc4+ {[%clk 0:01:54]} 23. Qxc4 {[%clk 0:00:08]}  Nxc4 {[%clk 0:01:54]} 0-1


[Site "https://www.chess.com"]